bitfinex-derivatives/quotes_SOLF0:USTF0_20250419
["timestamp","ask_amount","ask_price","bid_price","bid_amount"]
[1745023871139,1.21941016,134.85,132.91,4.40657275]
[1745023871339,1.21941016,134.84,132.92,4.40657275]
[1745023871534,1.21941016,134.83,132.93,4.40657275]
[1745023871738,1.21941016,134.82,132.94,4.40657275]
[1745023871939,1.21941016,134.81,132.95,4.40657275]
[1745023872138,1.21941016,134.8,132.96,4.40657275]
[1745023872336,1.21941016,134.79,132.97,4.40657275]
[1745023872542,1.21941016,134.78,132.98,4.40657275]
[1745023872740,1.21941016,134.77,132.99,4.40657275]
[1745023873041,4.75,134.87,132.89,2.74043857]
[1745023873242,1.219396,134.76,133.0,4.40647719]
[1745023873441,1.219396,134.75,133.01,4.40647719]
[1745023873741,1.219396,134.74,133.02,4.40647719]
[1745023873943,1.219396,134.73,133.03,4.40647719]
[1745023874141,1.219396,134.72,133.04,4.40647719]
[1745023874441,1.21939642,134.71,133.05,3.03704702]
[1745023874640,1.21939642,134.7,133.05,4.40650316]
[1745023874840,1.21939642,134.7,133.06,4.40650316]
[1745023875043,1.21939642,134.69,133.07,1.36945614]
[1745023875242,1.21939642,134.68,133.08,4.40650316]
[1745023875442,1.21939642,134.67,133.09,4.40650316]
[1745023875743,1.21939642,134.66,133.1,4.40650316]
[1745023876043,1.21939642,134.65,133.11,4.40650316]
[1745023876241,1.21939642,134.64,133.12,4.40650316]
[1745023876545,1.21947111,134.63,133.13,4.40695763]
[1745023876744,1.21947111,134.63,132.89,2.74043857]
[1745023876745,1.21947111,134.62,133.14,4.40695763]
[1745023876945,1.21947111,134.61,133.15,4.40695763]
[1745023877245,1.21947116,134.6,133.16,4.40695754]
[1745023877443,1.21947116,134.59,133.17,4.40695754]
[1745023877643,1.21947116,134.58,133.18,4.40695754]
[1745023877842,1.21947116,134.57,133.19,4.40695754]
[1745023878045,1.21947116,134.56,133.2,4.40695754]
[1745023878239,1.21947116,134.55,133.21,4.40695754]
[1745023878444,1.21958223,134.54,133.22,4.40779854]
[1745023878644,1.21958223,134.53,133.23,4.40779854]
[1745023878839,1.21958223,134.52,133.24,4.40779854]
[1745023879042,1.21958223,134.51,133.25,4.40779854]
[1745023879246,1.21958223,134.5,133.26,4.40779854]
[1745023879445,1.21958223,134.49,133.27,4.40779854]
[1745023879640,1.21958223,134.48,133.28,4.40779854]
[1745023879845,1.21958223,134.47,133.29,4.40779854]
[1745023880145,1.21958223,134.46,133.3,4.40779854]
[1745023880347,1.21958223,134.45,133.31,4.40779854]
[1745023880545,1.21958223,134.44,133.32,4.40779854]
[1745023880746,1.21958223,134.43,133.33,4.40779854]
[1745023880942,4.67,134.74,132.86,2.74043857]
[1745023881147,1.21951361,134.73,132.87,4.40931997]
[1745023881347,4.67,134.74,132.86,2.74043857]
[1745023881647,1.2193404,134.73,132.87,4.40931997]
[1745023881849,1.2193404,134.72,132.88,4.40931997]
[1745023882049,1.2193404,134.71,132.89,4.40931997]
[1745023882347,1.2193404,134.7,132.9,4.40931997]
[1745023882546,4.67,134.74,132.91,4.40931997]
[1745023882547,1.2193404,134.69,132.91,4.40931997]
[1745023882747,1.2193404,134.68,132.92,4.40931997]
[1745023882947,1.2193404,134.67,132.93,4.40931997]
[1745023883445,4.67,134.74,132.86,2.74043857]
[1745023883851,4.67,134.74,132.72,0.07534659]
[1745023895760,8.4,134.74,132.72,0.07534659]
[1745023903763,8.4,134.74,132.89,2.73741]
[1745023904064,1.21940717,134.73,132.89,2.73741]
[1745023904566,1.21940717,134.72,132.9,4.40682969]
[1745023904766,1.21940717,134.71,132.91,4.40682969]
[1745023905066,1.21940717,134.7,132.92,4.40682969]
[1745023905369,1.21940717,134.69,132.93,4.40682969]
[1745023905665,1.21940717,134.68,132.94,4.40682969]
[1745023905866,1.21940717,134.67,132.95,4.40682969]
[1745023906065,1.21940717,134.66,132.96,4.40682969]
[1745023906265,1.21940717,134.65,132.97,4.40682969]
[1745023906467,1.21940717,134.64,132.98,4.40682969]
[1745023906766,1.21940717,134.63,132.99,4.40682969]
[1745023906965,3.73,134.74,132.72,0.07534659]
[1745023906966,1.21940717,134.62,133.0,4.40682969]
[1745023907161,1.21940717,134.62,133.01,4.40682969]
[1745023907366,1.21940717,134.61,133.02,4.40682969]
[1745023907568,1.21940717,134.6,133.03,4.40682969]
[1745023907868,5.15940717,134.59,133.04,4.40682969]
[1745023908165,1.21940717,134.58,133.05,4.40682969]
[1745023908359,1.2186891,134.57,133.06,4.4024156]
[1745023908563,1.2186891,134.57,133.07,1.36874628]
[1745023908762,1.2186891,134.56,133.08,4.4024156]
[1745023908962,1.2186891,134.55,133.09,4.4024156]
[1745023909159,1.2186891,134.54,133.1,4.4024156]
[1745023909359,1.2186891,134.53,133.11,4.4024156]
[1745023909558,1.2186891,134.52,133.12,4.4024156]
[1745023909766,1.2186891,134.58,133.13,4.4024156]
[1745023909967,1.21829373,134.51,133.13,4.39985119]
[1745023910167,1.21829373,134.5,133.14,4.39985119]
[1745023910366,3.94,134.59,133.15,4.39985119]
[1745023910367,1.21829373,134.58,133.15,4.39985119]
[1745023910666,1.21829373,134.57,133.16,4.39985119]
[1745023910866,1.21829373,134.56,133.17,4.39985119]
[1745023911067,1.21829373,134.55,133.18,4.39985119]
[1745023911367,1.21829373,134.54,133.19,4.39985119]
[1745023911667,1.21829373,134.53,133.2,4.39985119]
[1745023911967,1.21829373,134.52,133.21,4.39985119]
[1745023912167,1.21829373,134.58,133.22,4.39985119]
[1745023912368,1.21829373,134.57,133.23,4.39985119]
[1745023912566,1.21829373,134.56,133.24,4.39985119]
[1745023913268,3.94,134.59,132.99,2.73741]
[1745023913568,3.94,134.59,132.72,0.07534659]
[1745023919570,7.4,134.59,132.72,0.07534659]
[1745023932983,1.21835941,134.58,132.99,2.72895465]
[1745023933383,1.21835941,134.57,133.0,4.39659734]
[1745023933585,1.21835941,134.56,133.01,4.39659734]
[1745023933887,1.21835941,134.55,133.02,4.39659734]
[1745023934182,1.21835941,134.54,133.03,4.39659734]
[1745023934482,1.21835941,134.53,133.04,4.39659734]
[1745023934683,1.21835941,134.52,133.05,4.39659734]
[1745023934885,1.21836803,134.51,133.06,4.39631025]
[1745023935087,1.21836803,135.61,133.07,4.39631025]
[1745023935384,1.21836803,135.6,133.08,4.39631025]
[1745023935687,1.21836803,135.59,133.09,4.39631025]
[1745023935878,1.21836803,135.58,133.1,4.39631025]
[1745023936078,1.21836803,135.57,133.11,4.39631025]
[1745023936282,1.21836803,135.56,133.12,4.39631025]
[1745023936482,1.21836803,135.55,133.13,4.39631025]
[1745023936686,1.21836803,135.54,133.14,4.39631025]
[1745023936886,1.21836803,135.53,133.15,4.39631025]
[1745023937084,1.21836803,135.52,133.16,4.39631025]
[1745023937285,1.21836803,135.51,133.17,4.39631025]
[1745023937687,1.21836803,135.5,133.18,4.39631025]
[1745023937887,1.21834467,135.49,133.19,4.39560168]
[1745023938090,1.21834467,135.48,133.2,4.39560168]
[1745023938289,1.21834467,135.47,133.21,4.39560168]
[1745023938587,3.55,135.53,132.99,2.72895465]
[1745023938588,1.21834467,135.46,133.22,4.39560168]
[1745023938793,1.21834467,135.45,133.23,4.39560168]
[1745023938991,1.21834467,135.44,133.24,4.39560168]
[1745023939189,1.21834467,135.43,133.25,4.39560168]
[1745023939390,1.21834467,135.42,133.26,4.39560168]
[1745023939690,1.21834467,135.41,133.27,4.39560168]
[1745023939890,1.21834467,135.4,133.28,4.39560168]
[1745023940090,1.21834467,135.39,133.29,4.39560168]
[1745023940290,1.21834467,135.38,133.3,4.39560168]
[1745023940491,1.21834467,135.37,133.31,4.39560168]
[1745023940793,1.21834291,135.36,133.32,4.39435071]
[1745023940994,1.21834291,135.35,133.33,4.39435071]
[1745023941190,1.21834291,135.35,133.34,3.02595922]
[1745023941396,1.21834291,135.34,133.35,4.39435071]
[1745023941694,1.21834291,135.33,133.36,4.39435071]
[1745023941894,1.21834291,135.32,133.37,4.39435071]
[1745023942098,1.21834291,135.31,133.38,4.39435071]
[1745023942397,1.21834291,135.3,133.39,4.39435071]
[1745023942591,1.21834291,135.29,133.4,4.39435071]
[1745023942896,1.21834291,135.28,133.41,4.39435071]
[1745023943090,1.21834291,135.27,133.42,4.39435071]
[1745023943294,1.21834291,135.26,133.43,4.39435071]
[1745023943596,1.21834291,135.25,133.44,4.39435071]
[1745023943791,1.21865488,135.24,133.45,4.39362383]
[1745023943997,1.21865488,135.23,133.46,4.39362383]
[1745023944198,1.21865488,135.22,133.47,4.39362383]
[1745023944397,1.21865488,135.21,133.48,4.39362383]
[1745023944696,1.21865488,135.2,133.49,4.39362383]
[1745023944891,1.21865488,135.19,133.5,4.39362383]
[1745023945094,1.21865488,135.18,133.51,4.39362383]
[1745023945291,3.55,135.53,132.96,2.72895465]
[1745023945596,1.2185083,135.52,132.97,4.3930855]
[1745023945897,1.2185083,135.51,132.98,4.3930855]
[1745023946197,1.2185083,135.5,132.99,4.3930855]
[1745023946397,1.2185083,135.49,133.0,4.3930855]
[1745023946596,1.2185083,135.48,133.01,4.3930855]
[1745023946797,3.55,135.53,132.96,2.72895465]
[1745023946997,1.21845921,135.52,132.97,4.39287236]
[1745023947198,1.21845921,135.51,132.98,4.39287236]
[1745023947398,1.21845921,135.5,132.99,4.39287236]
[1745023947600,1.21845921,135.49,133.0,4.39287236]
[1745023947898,1.21845921,135.48,133.01,4.39287236]
[1745023948100,1.21845921,135.47,133.02,4.39287236]
[1745023948299,3.55,135.53,132.96,2.72895465]
[1745023948500,1.21833035,135.46,133.03,4.39158884]
[1745023948695,1.21833035,135.45,133.04,4.39158884]
[1745023948899,1.21833035,135.44,133.05,4.39158884]
[1745023949095,1.21833035,135.43,133.06,4.39158884]
[1745023949299,1.21833035,135.42,133.07,4.39158884]
[1745023949500,1.21833035,135.41,133.08,4.39158884]
[1745023949801,1.21833035,135.4,133.09,4.39158884]
[1745023950003,1.21833035,135.39,133.1,3.02320931]
[1745023950198,1.21833035,135.38,133.11,1.36837953]
[1745023950397,1.21833035,135.37,133.12,3.02320931]
[1745023950600,1.21833035,135.37,133.13,3.02320931]
[1745023950803,1.21833035,135.36,133.13,4.39158884]
[1745023951102,1.21833035,135.35,133.14,4.39158884]
[1745023951301,1.21833035,135.34,133.15,3.02320931]
[1745023951601,1.21823767,135.34,133.16,3.02204906]
[1745023951801,1.21823767,135.33,133.17,4.39033487]
[1745023952002,1.21823767,135.32,133.18,3.02204906]
[1745023952194,1.21823767,135.31,133.19,4.39033487]
[1745023952502,1.21823767,135.3,133.2,4.39033487]
[1745023952703,1.21823767,135.29,133.21,4.39033487]
[1745023952900,1.21823767,135.28,133.22,4.39033487]
[1745023953101,1.21823767,135.27,133.23,4.39033487]
[1745023953305,1.21823767,135.26,133.24,4.39033487]
[1745023953506,1.21823767,135.25,133.25,4.39033487]
[1745023953704,1.21823767,135.24,133.26,4.39033487]
[1745023953905,1.21823767,135.23,133.27,4.39033487]
[1745023954101,1.21823767,135.22,133.28,4.39033487]
[1745023954302,1.21823767,135.21,133.29,4.39033487]
[1745023954504,1.21823767,135.2,133.3,4.39033487]
[1745023954704,1.21823767,135.19,133.31,4.39033487]
[1745023954906,1.21823767,135.18,133.32,4.39033487]
[1745023955202,1.21823767,135.17,133.33,4.39033487]
[1745023955410,1.21823767,135.16,133.34,4.39033487]
[1745023955710,1.21823767,135.15,133.35,4.39033487]
[1745023955911,3.55,135.53,132.95,2.72895465]
[1745023956204,1.21884255,135.52,133.36,1.36889625]
[1745023956410,1.21884255,135.51,133.37,4.39218675]
[1745023956614,1.21884255,135.5,133.38,3.0232905]
[1745023956804,1.21884255,135.49,133.39,4.39218675]
[1745023957112,1.21884255,135.48,133.4,4.39218675]
[1745023957307,1.21884255,135.47,133.41,4.39218675]
[1745023957511,1.21884255,135.46,133.42,4.39218675]
[1745023957711,1.21884255,135.45,133.43,4.39218675]
[1745023958012,1.21884255,135.44,133.44,4.39218675]
[1745023958312,1.21884255,135.43,133.45,4.39218675]
[1745023958512,1.21884255,135.42,133.46,4.39218675]
[1745023958714,1.21884255,135.41,133.47,4.39218675]
[1745023958914,1.21884255,135.4,133.48,4.39218675]
[1745023959109,3.64,135.49,133.49,4.39266421]
[1745023959316,1.21881535,135.48,133.5,4.39266421]
[1745023959514,1.21881535,135.47,133.51,4.39266421]
[1745023959714,1.21881535,135.46,133.52,4.39266421]
[1745023959914,1.21881535,135.45,133.53,4.39266421]
[1745023960114,1.21881535,135.44,133.54,4.39266421]
[1745023960315,1.21881535,135.43,133.55,4.39266421]
[1745023960516,1.21881535,135.42,133.56,4.39266421]
[1745023960713,1.21881535,135.41,133.57,4.39266421]
[1745023961016,1.21881535,135.4,133.58,4.39266421]
[1745023961215,1.21881535,135.39,133.59,4.39266421]
[1745023961411,1.21881535,135.38,133.6,4.39266421]
[1745023961715,1.21881535,135.37,133.61,4.39266421]
[1745023962010,1.21881535,135.36,133.62,4.39266421]
[1745023962315,1.21881535,135.35,133.63,4.39266421]
[1745023962517,1.21881535,135.34,133.64,4.39266421]
[1745023962715,1.21881535,135.33,133.65,4.39266421]
[1745023963016,1.21881535,135.32,133.66,4.39266421]
[1745023963215,1.21881535,135.31,133.67,4.39266421]
[1745023963418,1.21881535,135.3,133.68,4.39266421]
[1745023963616,1.21881535,135.29,133.69,4.39266421]
[1745023963816,1.21896048,135.28,133.7,4.39307853]
[1745023964117,1.21896048,135.27,133.71,4.39307853]
[1745023964312,1.21896048,135.26,133.72,4.39307853]
[1745023964516,1.21896048,135.25,133.73,4.39307853]
[1745023964712,1.21896048,135.24,133.74,4.39307853]
[1745023964910,1.21896048,135.23,133.75,4.39307853]
[1745023965113,1.21896048,135.22,133.76,4.39307853]
[1745023965313,2.84,135.36,132.93,2.72895465]
[1745023965517,1.21884714,135.35,132.94,4.39243281]
[1745023965710,1.21884714,135.34,132.95,4.39243281]
[1745023965914,1.21884714,135.33,132.96,4.39243281]
[1745023966117,1.21884714,135.32,132.97,4.39243281]
[1745023966417,2.84,135.36,132.98,4.39243281]
[1745023966418,1.21884714,135.31,132.98,4.39243281]
[1745023966618,1.21884714,135.3,132.99,4.39243281]
[1745023966821,2.84,135.36,132.93,2.72895465]
[1745023967114,1.21875743,135.29,132.96,2.72895465]
[1745023967314,1.21875743,135.28,132.97,4.39173456]
[1745023967514,1.21875743,135.27,132.98,4.39173456]
[1745023967818,1.21875743,135.26,132.99,4.39173456]
[1745023968013,1.21875743,135.25,133.0,4.39173456]
[1745023968218,1.21875743,135.24,133.01,4.39173456]
[1745023968518,1.21875743,135.23,133.02,4.39173456]
[1745023968719,1.21875743,135.23,133.03,1.36881083]
[1745023968921,1.21875743,135.22,133.04,4.39173456]
[1745023969115,1.21875743,135.21,133.05,4.39173456]
[1745023969317,1.21875743,135.2,133.06,4.39173456]
[1745023969520,1.21875743,135.19,133.07,4.39173456]
[1745023969721,1.21875743,135.18,133.08,4.39173456]
[1745023969923,1.21875743,135.17,133.09,4.39173456]
[1745023970124,1.21872533,135.17,133.09,4.39064339]
[1745023970324,1.21872533,135.17,133.1,4.39064339]
[1745023970525,1.21872533,135.16,133.11,3.02186507]
[1745023970725,1.21872533,135.16,133.12,1.36877832]
[1745023970925,1.21872533,135.15,133.13,4.39064339]
[1745023971125,1.21872533,135.14,133.14,4.39064339]
[1745023971317,1.21872533,135.13,133.15,4.39064339]
[1745023971519,1.21872533,135.13,133.15,3.02186507]
[1745023971722,1.21881913,135.12,133.16,4.39117387]
[1745023971923,1.21881913,135.11,133.17,4.39117387]
[1745023972123,1.21881913,135.1,133.18,4.39117387]
[1745023972318,1.21881913,135.09,133.19,4.39117387]
[1745023972522,1.21881913,135.08,133.2,4.39117387]
[1745023972820,1.21881913,135.07,133.21,4.39117387]
[1745023973018,1.21881913,135.06,133.22,4.39117387]
[1745023973223,1.21881925,135.05,133.23,4.3912011]
[1745023973420,1.21881925,135.04,133.24,4.3912011]
[1745023973725,1.21881925,135.03,133.25,4.3912011]
[1745023973926,1.21881925,135.02,133.26,4.3912011]
[1745023974122,1.21881925,135.01,133.27,4.3912011]
[1745023974323,1.21881925,135.0,133.28,4.3912011]
[1745023974526,1.21881925,134.99,133.29,4.3912011]
[1745023974726,3.64,135.49,132.94,2.72895465]
[1745023974926,1.21886894,134.98,133.3,4.39210581]
[1745023975127,1.21886894,134.97,133.31,4.39210581]
[1745023975327,1.21886894,134.96,133.32,4.39210581]
[1745023975529,1.21886894,134.95,133.33,4.39210581]
[1745023975827,1.21886894,134.94,133.34,4.39210581]
[1745023976028,1.21886894,134.93,133.35,4.39210581]
[1745023976227,3.24,134.94,132.94,2.72895465]
[1745023976429,1.21883248,134.93,132.95,4.39189423]
[1745023976726,1.21883248,134.92,132.96,4.39189423]
[1745023976926,1.21883248,134.91,132.97,4.39189423]
[1745023977127,1.21883248,134.9,132.98,4.39189423]
[1745023977427,1.21883248,134.89,132.99,4.39189423]
[1745023977622,1.21883248,134.88,133.0,4.39189423]
[1745023977820,3.24,134.94,132.94,2.72895465]
[1745023978024,1.21886893,134.87,133.01,4.39157528]
[1745023978225,1.21886893,134.86,133.02,4.39157528]
[1745023978425,1.21886893,134.85,133.03,4.39157528]
[1745023978625,1.21886893,134.84,133.04,4.39157528]
[1745023978830,1.21886893,134.83,133.05,4.39157528]
[1745023979028,1.21886893,134.82,133.06,4.39157528]
[1745023979229,1.21886893,134.81,133.07,4.39157528]
[1745023979430,1.21886893,134.8,133.08,4.39157528]
[1745023979630,1.21886893,134.79,133.09,4.39157528]
[1745023979930,1.21886893,134.78,133.1,4.39157528]
[1745023980231,1.21886893,134.77,133.11,4.39157528]
[1745023980524,3.24,134.94,133.12,4.39157528]
[1745023980525,1.21886893,134.76,133.12,4.39157528]
[1745023980733,1.21886893,134.75,133.13,4.39157528]
[1745023980932,1.21886713,134.74,133.14,4.39207514]
[1745023981230,1.21886713,134.73,133.15,4.39207514]
[1745023981430,3.24,134.94,133.16,4.39207514]
[1745023981431,1.21886713,134.72,133.16,4.39207514]
[1745023981632,1.21886713,134.71,133.17,4.39207514]
[1745023981830,1.21886713,134.7,133.18,4.39207514]
[1745023982030,1.21886713,134.69,133.19,4.39207514]
[1745023982227,1.21889231,134.68,133.2,4.39203245]
[1745023982429,1.21889231,134.68,133.21,1.3689464]
[1745023982630,1.21889231,134.67,133.22,4.39203245]
[1745023982830,1.21889231,134.66,133.23,4.39203245]
[1745023983031,1.21889231,134.65,133.24,4.39203245]
[1745023983233,1.21889231,134.65,132.93,2.72895465]
[1745023983234,1.21889231,134.64,133.25,4.39203245]
[1745023983433,1.21889231,134.63,133.26,4.39203245]
[1745023983735,3.24,134.94,132.93,2.72895465]
[1745023983931,1.21888632,134.93,132.94,4.39052678]
[1745023984128,1.21888632,134.92,132.95,4.39052678]
[1745023984431,1.21888632,134.91,132.96,4.39052678]
[1745023984735,1.21888632,134.9,132.97,4.39052678]
[1745023985033,1.21888632,134.89,132.98,4.39052678]
[1745023985335,3.24,134.94,132.93,2.72895465]
[1745023985535,1.21871761,134.93,132.99,1.36877113]
[1745023985734,1.21871761,134.92,133.0,4.38896179]
[1745023986034,1.21871761,134.91,133.01,4.38896179]
[1745023986234,1.21871761,134.9,133.02,4.38896179]
[1745023986429,1.21871761,134.89,133.03,4.38896179]
[1745023986632,1.21871761,134.88,133.04,4.38896179]
[1745023986933,1.21871761,134.87,133.05,4.38896179]
[1745023987134,1.21871761,134.86,133.06,4.38896179]
[1745023987333,1.21871761,134.85,133.07,4.38896179]
[1745023987530,1.21871761,134.84,133.08,4.38896179]
[1745023987736,1.21871761,134.83,133.09,4.38896179]
[1745023987937,1.21871761,134.82,133.1,4.38896179]
[1745023988234,1.21871761,134.81,133.11,4.38896179]
[1745023988434,1.21871761,134.8,133.12,4.38896179]
[1745023988635,1.21857267,134.79,133.13,4.38893348]
[1745023988834,1.21857267,134.78,133.14,4.38893348]
[1745023989030,1.21857267,134.77,133.15,4.38893348]
[1745023989236,1.21857267,134.76,133.16,4.38893348]
[1745023989437,1.21857267,134.75,133.17,4.38893348]
[1745023989637,1.21857267,134.74,133.18,4.38893348]
[1745023989841,1.21857267,134.73,133.19,4.38893348]
[1745023990048,1.21857267,134.72,133.2,4.38893348]
[1745023990340,1.21857267,134.71,133.21,4.38893348]
[1745023990538,1.21857267,134.7,133.22,3.02030962]
[1745023990738,1.21857267,134.7,133.23,3.02030962]
[1745023990939,1.21857267,134.69,133.24,3.02030962]
[1745023991140,1.21857267,134.68,133.25,3.02030962]
[1745023991335,1.21857267,134.67,133.25,4.38893348]
[1745023991537,1.21857267,134.66,133.26,4.38893348]
[1745023991738,2.84,134.74,132.97,2.72895465]
[1745023992037,1.21864392,134.73,132.98,4.38938248]
[1745023992235,1.21864392,134.72,132.99,4.38938248]
[1745023992441,1.21864392,134.71,133.0,4.38938248]
[1745023992640,1.21864392,134.7,133.01,4.38938248]
[1745023992936,1.21864392,134.69,133.02,4.38938248]
[1745023993137,1.21864392,134.68,133.03,4.38938248]
[1745023993444,1.21864392,134.67,133.04,4.38938248]
[1745023993637,1.21864392,134.66,133.05,4.38938248]
[1745023993839,1.21864392,134.65,133.06,4.38938248]
[1745023994143,1.21864392,134.64,133.07,4.38938248]
[1745023994346,1.21864392,134.63,133.08,4.38938248]
[1745023994544,1.21864392,134.62,133.09,4.38938248]
[1745023994840,1.21864392,134.61,133.1,4.38938248]
[1745023995243,1.21864392,134.6,133.11,4.38938248]
[1745023995442,1.21864392,134.59,133.12,4.38938248]
[1745023995639,1.21864392,134.58,133.13,4.38938248]
[1745023995841,1.21864392,134.57,133.14,4.38938248]
[1745023996043,1.21864392,134.56,133.15,4.38938248]
[1745023996244,1.21864392,134.55,133.16,4.38938248]
[1745023996544,2.84,134.74,132.96,2.72895465]
[1745023996745,1.21865471,134.54,133.17,4.38780663]
[1745023997045,1.21865471,134.53,133.18,4.38780663]
[1745023997347,1.21865471,134.52,133.19,4.38780663]
[1745023997548,1.21865471,134.51,133.2,4.38780663]
[1745023997748,1.21865471,134.5,133.21,4.38780663]
[1745023997949,1.21865471,134.49,133.22,4.38780663]
[1745023998148,3.22,134.52,132.96,2.72895465]
[1745023998348,1.21859975,134.51,132.97,4.38723851]
[1745023998549,1.21859975,134.5,132.98,4.38723851]
[1745023998750,1.21859975,134.49,132.99,4.38723851]
[1745023998952,1.21859975,134.51,133.0,4.38723851]
[1745023999145,1.21859975,134.5,133.01,4.38723851]
[1745023999351,1.21859975,134.49,133.02,4.38723851]
[1745023999548,1.21859975,134.51,133.03,4.38723851]
[1745023999746,3.22,134.52,132.96,2.72895465]
[1745024000054,1.21861817,134.51,132.97,4.38734998]
[1745024000349,1.21861817,134.5,132.98,4.38734998]
[1745024000654,1.21861817,134.49,132.99,4.38734998]
[1745024000848,1.21861817,134.48,133.0,4.38734998]
[1745024001053,1.21861817,134.47,133.01,4.38734998]
[1745024001253,1.21861817,134.46,133.02,4.38734998]
[1745024001455,1.21877519,134.45,133.03,4.38863413]
[1745024001649,1.21877519,134.51,133.04,4.38863413]
[1745024001849,1.21876894,134.5,133.05,4.38855229]
[1745024002048,1.21876894,134.49,133.06,4.38855229]
[1745024002252,1.21876894,134.48,133.07,4.38855229]
[1745024002556,1.21876894,134.47,133.08,4.38855229]
[1745024002857,1.21876894,134.46,133.09,4.38855229]
[1745024003153,1.21874563,134.45,133.1,4.38827298]
[1745024003354,1.21874563,134.51,133.11,4.38827298]
[1745024003554,1.21874563,134.5,133.12,4.38827298]
[1745024003756,1.21874563,134.49,133.13,4.38827298]
[1745024004056,1.21874563,134.48,133.14,4.38827298]
[1745024004256,1.21874563,134.47,133.15,4.38827298]
[1745024004457,1.21874563,134.51,133.16,4.38827298]
[1745024004658,1.21874563,134.5,133.17,4.38827298]
[1745024004854,1.21874563,134.49,133.18,4.38827298]
[1745024005052,1.21874563,134.48,133.19,4.38827298]
[1745024005256,1.21874563,134.47,133.2,4.38827298]
[1745024005554,1.21874563,134.46,133.21,4.38827298]
[1745024005757,1.21874563,134.45,133.22,4.38827298]
[1745024005957,1.21874563,134.44,133.23,4.38827298]
[1745024006158,1.21874563,134.43,133.24,4.38827298]
[1745024006355,1.21890414,134.42,133.25,4.38942224]
[1745024006556,1.21890414,134.51,133.26,4.38942224]
[1745024006858,1.21890414,134.5,133.27,4.38942224]
[1745024007057,1.21890414,134.49,133.28,4.38942224]
[1745024007262,1.21890414,134.48,133.29,4.38942224]
[1745024007559,1.21890414,134.47,133.3,4.38942224]
[1745024007859,1.21890414,134.46,133.31,4.38942224]
[1745024008055,1.21890414,134.51,133.32,4.38942224]
[1745024008254,1.21890414,134.5,133.33,4.38942224]
[1745024008454,1.21890414,134.49,133.34,4.38942224]
[1745024008656,1.21890414,134.49,132.93,2.72895465]
[1745024008657,1.21890414,134.48,133.35,4.38942224]
[1745024008959,1.21890414,134.47,133.36,4.38942224]
[1745024009160,1.21890414,134.46,133.37,4.38942224]
[1745024009360,1.21890414,134.45,133.38,4.38942224]
[1745024009661,1.21890414,134.51,133.39,4.38942224]
[1745024009863,1.21890414,134.5,133.4,4.38942224]
[1745024010063,1.21890414,134.5,133.41,1.36895703]
[1745024010365,1.21894666,134.49,133.41,4.3897812]
[1745024010662,1.21894666,134.48,133.42,4.3897812]
[1745024010862,1.21894666,134.47,133.43,3.02077968]
[1745024011063,1.21894666,134.46,133.44,3.02077968]
[1745024011258,3.22,134.52,132.93,2.72895465]
[1745024011562,1.2189631,134.51,133.45,1.3690181]
[1745024011863,1.2189631,134.5,133.46,4.38986559]
[1745024012161,1.2189631,134.49,133.47,4.38986559]
[1745024012364,1.2189631,134.48,133.48,4.38986559]
[1745024012559,1.2189631,134.47,133.49,4.38986559]
[1745024012756,1.2189631,134.46,133.5,4.38986559]
[1745024012956,1.21888287,134.45,133.51,4.38938825]
[1745024013161,1.21888287,134.51,133.52,4.38938825]
[1745024013363,1.21888287,134.5,133.53,4.38938825]
[1745024013662,1.21888287,134.49,133.54,4.38938825]
[1745024013863,1.21888287,134.48,133.55,4.38938825]
[1745024014064,1.21888287,134.47,133.56,4.38938825]
[1745024014265,1.21888287,134.51,133.57,4.38938825]
[1745024014464,3.22,134.52,132.93,2.72895465]
[1745024014667,1.21874141,134.5,133.58,4.38985404]
[1745024014866,3.22,134.52,132.72,0.07534659]
[1745024014867,1.21874141,134.49,133.59,4.38985404]
[1745024015166,1.21874141,134.48,133.6,4.38985404]
[1745024015363,1.21874141,134.48,133.61,4.38985404]
[1745024015565,1.21874141,134.48,133.62,4.38985404]
[1745024015865,1.21874141,134.48,133.63,4.38985404]
[1745024016067,3.81,134.49,132.95,2.72895465]
[1745024016265,1.21866887,134.48,132.96,4.38940442]
[1745024016461,1.21866887,134.48,132.97,4.38940442]
[1745024016659,1.21866887,134.48,132.98,4.38940442]
[1745024016862,1.21866887,134.48,132.99,4.38940442]
[1745024017159,1.21866887,134.48,132.95,2.72895465]
[1745024017160,1.21866887,134.48,133.0,4.38940442]
[1745024017359,1.21866887,134.48,133.01,4.38940442]
[1745024017562,1.21866887,134.48,133.02,4.38940442]
[1745024017862,1.21866887,134.48,133.03,4.38940442]
[1745024018067,1.21866887,134.48,133.04,4.38940442]
[1745024018366,1.21866887,134.48,133.05,4.38940442]
[1745024018567,1.21866887,134.48,133.06,4.38940442]
[1745024018761,1.21866887,134.48,133.07,4.38940442]
[1745024018966,3.05,134.47,133.08,4.38940442]
[1745024019166,1.21866887,134.46,133.09,4.38940442]
[1745024019367,1.21870534,134.45,133.1,4.38962882]
[1745024019567,1.21870534,134.46,133.11,4.38962882]
[1745024019767,1.21870534,134.45,133.12,4.38962882]
[1745024020071,1.21870534,134.44,133.13,4.38962882]